Cogmind - Beta 12 @@@ ROGUE MODE // 2023.03.05 @ 02:42:28 Player: Wayland Result: Destroyed by S-27 Virus with Autogun Performance ------------- Evolutions (4) 2000 Regions Visited (5) 1000 Robots Destroyed (24) 120 Value Destroyed (654) 654 Prototype IDs (7) 140 Alien Tech Used (0) 0 Bonus (0) 0 TOTAL SCORE: 3914 Bonus ------- None Cogmind --------- Core Integrity 0/850 Matter 300/300 Energy 99/100 System Corruption 7% Temperature Cool (0) Movement Core (50) Location -6/Factory Parts ------- > --- POWER (2) -------- (None) > --- PROPULSION (4) --- (None) > --- UTILITY (6) ------ Enhanced Optical Array Advanced Signal Interpreter > --- WEAPON (3) ------- (None) > --- INVENTORY (5) ---- Nuclear Core Fusion Compressor Improved Thermal Generator Layered Medium Armor Plating Axe Peak State ------------ > --- POWER ------------ Light Fission Core > --- PROPULSION ------- Cesium-ion Thruster Cesium-ion Thruster Cesium-ion Thruster Xenon Bombardment Thruster > --- UTILITY ---------- Small Storage Unit Structural Scanner Improved Signal Interpreter Reaction Control System Hacking Suite Hacking Suite > --- WEAPON ----------- Gatling Laser Hypervelocity Gauss Rifle Hypervelocity Gauss Rifle > --- INVENTORY -------- Nuclear Core Cesium-ion Thruster Biomechanical Wings Improved Signal Interpreter Improved Targeting Computer [Rating: 47] Favorites ----------- Power Ion Engine Engine Ion Engine Power Core Light Nuclear Core Propulsion Cesium-ion Thruster Treads Light Treads Leg Aluminum Leg Wheel Armored Wheel Flight Unit Cesium-ion Thruster Utility Small Storage Unit Device Structural Scanner Storage Small Storage Unit Processor Improved Signal Interpreter Hackware Hacking Suite Protection Layered Medium Armor Plating Weapon Beam Rifle Energy Gun Beam Rifle Ballistic Gun Light Assault Rifle Slashing Weapon Axe Build | -11 -10 -9 -8 -7 -6 ------- Run | Jun Mat Mat Mat Fac Fac Slots Evolved 8 | . . 2 2 2 2 Power 1 | . . . 1 . . Propulsion 2 | . . 1 1 . . Utility 4 | . . 1 . 2 1 Weapon 1 | . . . . . 1 Parts Attached 73 | 6 4 16 4 12 31 Power 10 | 1 . 2 . 2 5 Engine 5 | 1 . 2 . 1 1 Core 5 | . . . . 1 4 Reactor . | . . . . . . Propulsion 31 | 2 2 10 1 4 12 Treads 1 | . . 1 . . . Leg 2 | 2 . . . . . Wheel 5 | . 2 3 . . . Hover . | . . . . . . Flight 23 | . . 6 1 4 12 Utility 15 | 1 1 1 2 2 8 Device 3 | . . . . 2 1 Storage 1 | 1 . . . . . Processor 8 | . 1 1 1 . 5 Hackware 2 | . . . 1 . 1 Protection 1 | . . . . . 1 Artifact . | . . . . . . Weapon 17 | 2 1 3 1 4 6 Energy Gun 9 | . 1 3 1 4 . Energy Cannon . | . . . . . . Ballistic Gun 7 | 2 . . . . 5 Ballistic Cannon . | . . . . . . Launcher . | . . . . . . Special Weapon . | . . . . . . Impact Weapon . | . . . . . . Slashing Weapon 1 | . . . . . 1 Piercing Weapon . | . . . . . . Special Melee Weapon . | . . . . . . Unidentified Prototypes 3 | . . . . 1 2 Parts Lost 32 | . . 4 . 4 24 Power 3 | . . 1 . . 2 Propulsion 15 | . . 2 . 2 11 Utility 8 | . . . . . 8 Weapon 6 | . . 1 . 2 3 Highest Loss Streak 9 | . . 2 . 3 9 To Critical Strikes . | . . . . . . Average Slot Usage (%) 82 | . 98 87 90 87 68 Engine 6 | . 14 10 9 5 . Core 2 | . . . . 1 6 Treads 1 | . . 4 . . . Leg 3 | . 26 . . . . Wheel 7 | . 1 23 . . . Flight 15 | . . 1 36 29 23 Device 3 | . . . . 10 5 Storage 8 | . 14 11 9 7 5 Processor 12 | . 12 16 9 7 12 Hackware 3 | . . . 8 7 6 Energy Gun 9 | . 1 17 18 14 1 Ballistic Gun 3 | . 26 . . . 1 Naked Turns . | . . . . . . Heaviest Build 25 | 12 13 17 14 21 25 Greatest Support 34 | 20 24 34 20 21 21 Greatest Overweight (x) 3 | . 1 3 . 1 2 Average Overweight (x) . | . . . . . . Largest Inventory Capacity 8 | 8 8 8 8 8 8 Average Capacity 7 | 6 8 8 8 8 7 Most Carried 8 | 6 8 8 8 8 8 Average Carried 6 | 4 7 6 7 7 5 Final Capacity 8 | 8 8 8 8 8 5 Final Carried 8 | 6 8 8 8 5 5 Class Distribution -------------------- 51% | Mutant 28% | Sprinter 16% | Hacker-Sprinter Dominant Class ---------------- Mutant | -10/Materials Mutant | -9/Materials Sprinter | -8/Materials Sprinter | -7/Factory Hacker-Sprinter | -6/Factory Resources | -11 -10 -9 -8 -7 -6 ----------- Run | Jun Mat Mat Mat Fac Fac Matter Collected 976 | 260 45 150 . . 521 Remotely . | . . . . . . Salvage Created 802 | . 110 548 . 24 120 Parts 46 | . 7 27 . 3 9 Haulers Intercepted . | . . . . . . Recyclers Shooed . | . . . . . . Parts Field Recycled . | . . . . . . Retrieved Matter . | . . . . . . Parts Self-Destructed . | . . . . . . Prevented . | . . . . . . Kills | -11 -10 -9 -8 -7 -6 ------- Run | Jun Mat Mat Mat Fac Fac Combat Hostiles Destroyed 21 | . 2 14 . 1 4 Guns 21 | . 2 14 . 1 4 Classes Destroyed 6 | . 2 4 . . . Builder 1 | . . 1 . . . Operator 1 | . 1 . . . . Watcher 1 | . . 1 . . . Swarmer 9 | . . 4 . 1 4 Grunt 11 | . 2 9 . . . Sentry 1 | . . 1 . . . Best Kill Streak 6 | . 2 6 . 1 3 Combat Bots Only 6 | . 2 6 . 1 3 Max Kills in Single Turn 2 | . 1 2 . 1 1 Gunslinging 1 | . . 1 . . . Exploded . | . . . . . . Melee . | . . . . . . Uniques/NPCs Destroyed . | . . . . . . Combat | -11 -10 -9 -8 -7 -6 -------- Run | Jun Mat Mat Mat Fac Fac Damage Taken 3288 | . 89 720 106 415 1958 Core 1188 | . 51 128 44 105 860 Absorbed by Shields 77 | . . . . 72 5 Core Remaining (%) 84 | 100 79 68 92 85 . Volleys Fired 82 | . 10 50 2 5 15 Largest 3 | . 2 2 2 2 3 Hottest 146 | . 40 106 96 130 146 Shots Fired 143 | . 20 82 4 10 27 Gun 143 | . 20 82 4 10 27 Cannon . | . . . . . . Launcher . | . . . . . . Special . | . . . . . . Kinetic 46 | . 20 . . . 26 Thermal 92 | . . 82 4 5 1 Explosive . | . . . . . . Electromagnetic 5 | . . . . 5 . Robot Hit Streak 17 | . 3 17 5 5 11 Robot Miss Streak 5 | . 2 2 1 4 5 Penetration Max . | . . . . . . Secondary Targets 4 | . . 2 . . 2 Max Gunslinging Chain 1 | . . 1 . . 1 Shots Hit Robots 106 | . 12 65 3 6 20 Core Hits 44 | . 8 23 1 4 8 Critical Kills 2 | . . . . . 2 Critical Parts Destroyed 2 | . . . . . 2 Critical Strikes 5 | . . 1 . . 4 Burn 1 | . . 1 . . . Destroy 4 | . . . . . 4 Melee Attacks . | . . . . . . Impact . | . . . . . . Slashing . | . . . . . . Piercing . | . . . . . . Sneak Attacks . | . . . . . . Combat Hostiles . | . . . . . . Follow-up Attacks . | . . . . . . Damage Inflicted 1255 | . 107 861 39 116 132 Guns 1253 | . 107 861 39 116 130 Cannons . | . . . . . . Explosions . | . . . . . . Melee . | . . . . . . Ramming 2 | . . . . . 2 Kinetic 237 | . 107 . . . 130 Thermal 996 | . . 861 39 96 . Explosive . | . . . . . . Electromagnetic 20 | . . . . 20 . Impact . | . . . . . . Slashing . | . . . . . . Piercing . | . . . . . . Highest Corruption 7 | . 3 . . . 7 Average Corruption 4 | . 2 . . . 5 Corruption Purged . | . . . . . . Corruption Blocked . | . . . . . . Effects 9 | . 4 . . . 5 Message Errors 2 | . . . . . 2 Matter Fused 3 | . 2 . . . 1 Data Loss (minor) 3 | . 2 . . . 1 Data Loss (major) 1 | . . . . . 1 Overload Shots . | . . . . . . Overflow Damage . | . . . . . . Projectiles . | . . . . . . Explosions . | . . . . . . Melee . | . . . . . . Knockbacks . | . . . . . . Impact . | . . . . . . Kinetic . | . . . . . . Secondary . | . . . . . . Self-Inflicted Damage 1 | . . . . . 1 Shots . | . . . . . . Rammed 1 | . . . . . 1 Targets Rammed 1 | . . . . . 1 Kicked . | . . . . . . Crushed . | . . . . . . Highest Temperature 424 | . 18 424 69 274 72 Average Temperature 148 | . 9 181 34 160 29 Received Heat Transfer 573 | . 54 312 27 72 108 Effects 2 | . . 2 . . . Shutdowns 1 | . . 1 . . . Energy Bleed 1 | . . 1 . . . Siege Activations . | . . . . . . Robots Corrupted . | . . . . . . Combat Hostiles . | . . . . . . Parts Fried . | . . . . . . Impact Corruptions . | . . . . . . Robots Melted . | . . . . . . Combat Hostiles . | . . . . . . Parts Melted 4 | . . 4 . . . Heat Transferred 2599 | . . 2275 99 225 . Parts Sabotaged . | . . . . . . Parts Stolen . | . . . . . . Parts Stripped . | . . . . . . Power Chain Reactions . | . . . . . . Missiles Intercepted . | . . . . . . Alert | -11 -10 -9 -8 -7 -6 ------- Run | Jun Mat Mat Mat Fac Fac Peak Influence 477 | . 122 262 237 284 477 Initial 136 | . . 51 110 107 136 Average 146 | . 61 98 192 132 236 Maximum Alert Level 2 | . . 1 1 1 2 Low Security (%) 71 | 100 100 90 48 87 37 Level 1 25 | . . 9 51 12 53 Level 2 2 | . . . . . 8 Level 3 . | . . . . . . Level 4 . | . . . . . . Level 5 . | . . . . . . High Security . | . . . . . . Max Security . | . . . . . . Squads Dispatched 19 | . 1 4 5 3 6 Investigation 9 | . 1 2 1 2 3 Extermination 2 | . . . . 1 1 Reinforcement 7 | . . 2 4 . 1 Assault 1 | . . . . . 1 Garrison . | . . . . . . Intercept . | . . . . . . Searches Triggered 1 | . . . . . 1 Construction Impeded . | . . . . . . Haulers Reinforced . | . . . . . . Active Scanning Responses . | . . . . . . Cargo Convoy Interrupts . | . . . . . . Stealth | -11 -10 -9 -8 -7 -6 --------- Run | Jun Mat Mat Mat Fac Fac Distress Signals 8 | . 1 2 2 1 2 Communications Jammed . | . . . . . . Distress Signals . | . . . . . . Times Spotted 114 | . 6 23 17 17 51 Peak Tracking Total 20 | . 4 8 11 10 20 Tactical Retreats 18 | . 1 2 1 2 12 Traps | -11 -10 -9 -8 -7 -6 ------- Run | Jun Mat Mat Mat Fac Fac Traps Triggered 8 | . 3 1 . 1 3 Indirectly . | . . . . . . Trap Hack Attempts . | . . . . . . Triggered . | . . . . . . Disarmed . | . . . . . . Reprogrammed . | . . . . . . Reused . | . . . . . . Traps Extracted . | . . . . . . Installed . | . . . . . . Triggered . | . . . . . . Machines | -11 -10 -9 -8 -7 -6 ---------- Run | Jun Mat Mat Mat Fac Fac Machines Disabled 1 | . . . . 1 . Max in Single Turn 1 | . . . . 1 . Garrison Access 1 | . . . . . 1 Machines Repaired . | . . . . . . Machines Sabotaged . | . . . . . . Overloaded Fab Kills . | . . . . . . Hacking | -11 -10 -9 -8 -7 -6 --------- Run | Jun Mat Mat Mat Fac Fac Machines Accessed 18 | . 2 3 3 3 7 Terminals 12 | . 2 2 3 1 4 Fabricators 2 | . . . . 2 . Repair Stations . | . . . . . . Recycling Units 1 | . . . . . 1 Scanalyzers 3 | . . 1 . . 2 Garrison Access . | . . . . . . Total Hacks 57 | . 7 9 12 6 23 Successful 37 | . 2 8 6 5 16 Failed 20 | . 5 1 6 1 7 Catastrophic 6 | . . . 3 1 2 Database Lockouts . | . . . . . . Manual 16 | . 3 3 9 . 1 Terminals 34 | . 7 6 12 1 8 Fabricators 5 | . . . . 5 . Repair Stations . | . . . . . . Recycling Units 3 | . . . . . 3 Scanalyzers 15 | . . 3 . . 12 Garrison Access . | . . . . . . Terminal Hacks 11 | . 2 3 3 . 3 Part Schematic 2 | . . . 1 . 1 Prototype ID Bank 2 | . 1 . 1 . . Open DSF 1 | . . . . . 1 Branch Access Points 1 | . 1 . . . . Machine Index 1 | . . . . . 1 Repair Station Index 1 | . . 1 . . . Alert Level 1 | . . 1 . . . Unreport Threat 1 | . . 1 . . . Recall Investigation 1 | . . . 1 . . Fabricator Hacks 5 | . . . . 5 . Load Schematic 2 | . . . . 2 . Build 3 | . . . . 3 . Repair Station Hacks . | . . . . . . Recycling Unit Hacks 3 | . . . . . 3 Process 1 | . . . . . 1 Report Inventory 1 | . . . . . 1 Retrieve Matter 1 | . . . . . 1 Scanalyzer 12 | . . 2 . . 10 Insert Component 5 | . . 1 . . 4 Analyze 7 | . . 1 . . 6 Garrison Access Hacks . | . . . . . . Unauthorized Hacks 6 | . . 3 3 . . Terminals 6 | . . 3 3 . . Track 1 | . . 1 . . . Botnet 5 | . . 2 3 . . Fabricators . | . . . . . . Repair Stations . | . . . . . . Recycling Units . | . . . . . . Scanalyzers . | . . . . . . Garrison Access . | . . . . . . Data Cores Recovered 1 | . 1 . . . . Used . | . . . . . . Hacking Detections 17 | . 2 3 3 3 6 Full Trace Events 7 | . . 1 1 2 3 Feedback Events . | . . . . . . Feedback Blocked . | . . . . . . Robot Schematics Acquired . | . . . . . . Robots Built . | . . . . . . Authchips . | . . . . . . Time . | . . . . . . Total Robot Build Rating . | . . . . . . Part Schematics Acquired 6 | . . 1 1 . 4 Parts Built 5 | . . . . 5 . Authchips . | . . . . . . Time 182 | . . . . 182 . Total Part Build Rating 15 | . . . . 15 . Parts Repaired . | . . . . . . Time . | . . . . . . Parts Recycled . | . . . . . . Recycled Matter 21 | . . . . . 21 Retrieved Matter 21 | . . . . . 21 Retrieved Components . | . . . . . . Parts Scanalyzed 5 | . . 1 . . 4 Part Schematics Acquired 4 | . . 1 . . 3 Parts Damaged . | . . . . . . Bothacking | -11 -10 -9 -8 -7 -6 ------------ Run | Jun Mat Mat Mat Fac Fac Used RIF Installer . | . . . . . . Robots Hacked . | . . . . . . Non-combat . | . . . . . . Combat . | . . . . . . Robot Hacks Applied . | . . . . . . Relay Couplers Released 3 | . . . . . 3 Machine Destruction 3 | . . . . . 3 Fabnet Peak Effective % . | . . . . . . Robots Rewired . | . . . . . . Allies Hacked . | . . . . . . Hacks Repelled . | . . . . . . Allies | -11 -10 -9 -8 -7 -6 -------- Run | Jun Mat Mat Mat Fac Fac Total Allies . | . . . . . . Largest Group . | . . . . . . Highest-Rated Group . | . . . . . . Highest-Rated Ally . | . . . . . . Total Orders . | . . . . . . Ally Attacks . | . . . . . . Total Damage . | . . . . . . Kills . | . . . . . . Allies Corrupted . | . . . . . . Allies Melted . | . . . . . . Intel | -11 -10 -9 -8 -7 -6 ------- Run | Jun Mat Mat Mat Fac Fac Robot Analysis Total . | . . . . . . Derelict Logs Recovered . | . . . . . . Drone Launches . | . . . . . . Drone Recoveries . | . . . . . . Exploration | -11 -10 -9 -8 -7 -6 ------------- Run | Jun Mat Mat Mat Fac Fac Turns Passed 1911 | 63 231 567 106 318 626 Spaces Moved 2622 | 43 163 376 216 305 1519 Core 26 | 7 . 3 . . 16 Treads . | . . . . . . Legs 190 | 36 154 . . . . Wheels 333 | . 9 324 . . . Hover . | . . . . . . Flight 2073 | . . 49 216 305 1503 Fastest Speed 26 | 50 90 29 26 26 26 Average Speed 43 | 108 118 82 26 26 29 Slowest Speed 200 | 120 120 200 26 110 192 Overloaded Moves . | . . . . . . Propulsion Burnouts . | . . . . . . Robots Hopped 36 | . . . 3 10 23 Cave-ins Triggered . | . . . . . . Exploration Rate (%) 22 | 3 34 33 27 10 29 Regions Visited 5 Branch Regions . Pre-discovered Areas . | . . . . . . Known Exits Taken 3 | . . 1 1 1 . Unknown Exits Taken 2 | 1 1 . . . . Scrap Searched . | . . . . . . Spaces Dug . | . . . . . . Terrain Destroyed . | . . . . . . Melee . | . . . . . . Projectile . | . . . . . . AOE . | . . . . . . Terrain Rammed . | . . . . . . Walls Destroyed . | . . . . . . Machines Disabled . | . . . . . . Actions | -11 -10 -9 -8 -7 -6 --------- Run | Jun Mat Mat Mat Fac Fac Total 3232 | 59 185 555 258 520 1655 Wait 386 | . . 88 36 192 70 Move 2552 | 42 162 375 209 286 1478 Hop 29 | . . . 3 8 18 Pick Up 49 | 11 5 13 2 3 15 Fast Attach 11 | 1 2 . 1 4 3 Attach 45 | 5 1 11 2 4 22 Detach 10 | . . 2 . 1 7 Swap 18 | . 1 5 1 5 6 Drop 27 | . 4 11 2 7 3 Fire 82 | . 10 50 2 5 15 Melee . | . . . . . . Ram 1 | . . . . . 1 Kick . | . . . . . . Crush . | . . . . . . Escape Stasis 22 | . . . . 5 17 Rewire . | . . . . . . Trap . | . . . . . . Miscellaneous . | . . . . . . Route ------- -11/Junkyard -10/Materials (discovered 3 exits: *Mat / *Min x2) -9/Materials -8/Materials -7/Factory -6/Factory History --------- Turn | Location | Event 8 | -11/Junkyard | Discovered new exit (range 15) 64 | -11/Junkyard | Entered Materials 114 | -10/Materials | Discovered new exit (range 13) 117 | -10/Materials | Identified exit to Mines 275 | -10/Materials | Discovered new exit (range 7) 295 | -10/Materials | Entered another Materials area 295 | -9/Materials | Evolved 2 slots: Propulsion x1, Utility x1 316 | -9/Materials | Build established: Mutant 839 | -9/Materials | Discovered new exit (range 16) 862 | -9/Materials | Identified exit to Materials 862 | -9/Materials | Entered another Materials area 862 | -8/Materials | Evolved 2 slots: Power x1, Propulsion x1 968 | -8/Materials | Discovered new exit (range 4) 968 | -8/Materials | Identified exit to Factory 968 | -8/Materials | Entered Factory 968 | -7/Factory | Evolved 2 slots: Utility x2 1083 | -7/Factory | Fabricated Hyp. Gauss Rifle (x2) 1128 | -7/Factory | Build established: Sprinter 1134 | -7/Factory | Fabricated Structural Scanner (x2) 1178 | -7/Factory | Fabricated Hacking Suite (x1) 1282 | -7/Factory | Discovered new exit (range 14) 1286 | -7/Factory | Identified exit to Factory 1286 | -7/Factory | Entered another Factory area 1286 | -6/Factory | Evolved 2 slots: Utility x1, Weapon x1 1308 | -6/Factory | Lost 3 parts (2n1w) 1487 | -6/Factory | Lost 4 parts (2n1u1w) 1636 | -6/Factory | Search patrols dispatched 1685 | -6/Factory | Lost 8 parts (1p3n2u2w) 1896 | -6/Factory | Core integrity fell below 50% 1907 | -6/Factory | Core integrity fell below 20% 1912 | -6/Factory | Destroyed by S-27 Virus with Autogun Last Messages --------------- 01875_ ALERT: Hostiles spotted, dispatching reinforcements to Terminal F003. 01875_ O-24 Administrator locks terminal. 01885_ S-27 Virus destroyed. 01889_ Sml. Storage Unit destroyed. 01894_ K-01 Serf knocked back. 01896_ Assembly Bed disabled. 01897_ VTOL Module destroyed. 01899_ Acquired Prototype Engine. 01899_ Identified Hvy. Deuterium Engine. 01901_ Dropped Hvy. Deuterium Engine. 01903_ Acquired Imp. Reaction Control System. 01903_ Biomechanical Wings destroyed. 01903_ K-01 Serf destroyed. 01905_ Imp. Targeting Computer destroyed. 01905_ Slug penetrates Terminal. 01905_ Acquired 10 matter. 01905_ K-01 Serf collects debris. 01907_ Enh. Optical Array destroyed. 01908_ Imp. Reaction Control System destroyed. 01909_ K-01 Serf collects debris. Map ----- +----------------------------------------------------+ | ?????????????????????????????????????????????????? | | ?????????????????????????????????????????????????? | | ?????????????????????????????????????????????????? | | ?????????????????????????????????????????????????? | | ?????????????????????????????????????????????????? | | ?????????????????????????????????????????????????? | | ?????????????????????????????????????????????????? | | ?????????????????????????????????????????????????? | | ?????????????????????????????????????????????????? | | ?????????????????????????????????????????????????? | | ?????????????????????????????????????????????????? | | ?????????????????????????????????????????????????? | | ?????????????????????????????????????????????????? | | ?????????????????????????????????????????????????? | | ?????????????????????????????????????????????????? | | ?????????????????????????????????????????????????? | | ?????????????????????????????????????????????????? | | ?????????????????????????????????????????????????? | | ?????????????????????????????????????????########? | | ?????????????????????????????????????????# | | ??????? ?????????????????????????????????# """ | | ????? ?????????????????????????????# """ | | ????? ??????????###+###?????????# """ | | ???? ######## #?????????# """ | | ???? A #?????????# """ | | ???? R @ #?????????? """ | | ???? t u R +???????????? ? | | ????????###t############## #???????????###+### | | ?????????????????????????# #???????????# # | | ?????????????????????????# ############# | | ?????????????????????????# sss | | ?????????????????????????# s | | ?????????????????????????# ** """ # | | ?????????????????????????# *s* """" # | | ?????????????????????????# %= *** """" ^!] # | | ?????????????????????????####### p """"!!!] # | | ???????????????????????????????# g """" !] # | | ???????????????????????????????# """ """" # | | ???????????????????????????????# "T o # | | ???????????????????????????????# """ # | | #########?????????????????????# | | #########?????????????????????# | | # ##?????????????????????# | | # """ ##?????????????????????# #####+### | | ## """ ##?????????????????????# """ #??? ?? | | ## """ ##?????????????????????# """ #??? ?? | | ## ##?????????????????????# """ #?? ? | | ## ##?????????????????????# #?? """"? | | #####+#### ## ???????# "" #? """" | | ### ############+#########+## " #? """" | +----------------------------------------------------+ Best States ------------- Heat Dissipation 37 Energy Generation 27 Energy Capacity 390 Matter Stores 300 Matter Capacity 300 Sight Range 22 Terrain Scan Density 10 Armor Coverage 225 Evasion (%) 72 Targeting Accuracy 6 Offensive Hacking 20 Item Schematics ----------------- Hacking Suite | -9/Materials | Scanalyzed Structural Scanner | -8/Materials | Hacked Biomechanical Wings | -6/Factory | Scanalyzed Hyp. Gauss Rifle | -6/Factory | Scanalyzed Imp. Signal Interpreter | -6/Factory | Scanalyzed Imp. Cloaking Device | -6/Factory | Hacked Robot Schematics ------------------ None Fabricated ------------ Hyp. Gauss Rifle | x2 | -7/Factory | Preloaded Structural Scanner | x2 | -7/Factory Hacking Suite | x1 | -7/Factory Alien Tech Used ----------------- None Achievements -------------- None Challenges ------------ None Game ------ Seed UltimateTractorFlamer Manual? 0 Play Time 00:47:41 Cumulative 119.2 hours Start 2023.03.05 @ 01:56:25 End 2023.03.05 @ 02:42:28 Sessions 1 Manual Loads 0 Difficulty Rogue Special Mode None Game No. 177 Rogue 177 Adventurer 0 Explorer 0 Win Type - Total 2 Types 1/0/1/0/0/0/0/0/0 Lore% 49 Gallery% 57 Achievement% 50 Wizard Run 0 Options --------- ASCII 0 Keyboard 0 Movement Mouse Keybinds 0 Fullscreen 2 Font 24/Proggy Map View 113x50 Tactical HUD 1 Map Filters NONE Filters NONE Steam 1 RUN: 9d0c4174-03b9-4b86-84cb-efa6436974f3